fUST/lending_fUST_20240323
["ID","MTS","AMOUNT","RATE_DAILY","PERIOD"]
[320096421,1711153840652,-983.03,0.00025205,2]
[320096422,1711153840661,-3236.98,0.00025205,2]
[320096423,1711153840671,-1331.35,0.00025205,2]
[320096424,1711153840680,-280.62819496,0.00025205,2]
[320096425,1711153840689,-500.0,0.00025205,2]
[320096426,1711153840698,-500.0,0.00025205,2]
[320096427,1711153840707,-500.0,0.00025205,2]
[320096428,1711153840716,-659.77,0.00025205,2]
[320096429,1711153840725,-500.0,0.00025205,2]
[320096430,1711153840735,-500.0,0.00025205,2]
[320096431,1711153840744,-1040.35,0.00025205,2]
[320096432,1711153840754,-2521.87,0.00025205,2]
[320096433,1711153840764,-500.0,0.00025205,2]
[320096434,1711153840773,-3010.24,0.00025205,2]
[320096435,1711153840782,-1081.51,0.00025205,2]
[320096436,1711153840792,-500.0,0.00025205,2]
[320096437,1711153840801,-500.0,0.00025205,2]
[320096438,1711153840811,-500.0,0.00025205,2]
[320096439,1711153840820,-1031.2,0.00025205,2]
[320096440,1711153840831,-15982.56674057,0.00025205,2]
[320096459,1711154656860,155.1421026,0.00019,2]
[320096460,1711154676149,295.84600888,0.00019,2]
[320096461,1711154683951,19053.88414814,0.00019,2]
[320096462,1711154684627,313.01921903,0.00019,2]
[320096463,1711154685393,15978.35706845,0.00019,2]
[320096464,1711154689217,399.59325259,0.00019,2]
[320096465,1711154697969,19049.86063308,0.00019,2]
[320096466,1711154700270,10286.9459907,0.00019,2]
[320096467,1711154700631,312.87376475,0.00019,2]
[320096474,1711154775998,150.0,0.000189,2]
[320096557,1711155038214,-303.36590735,0.00023005,2]
[320096559,1711155038224,-11239.01616258,0.00023308,2]
[320096561,1711155038236,-13660.98383742,0.00023308,2]
[320096563,1711155038246,-166.46978219,0.000238,2]
[320096565,1711155038257,-150.0,0.000239,2]
[320096567,1711155038267,-28111.80699567,0.00024259,2]
[320096569,1711155038277,-779.72077743,0.0002426,2]
[320096570,1711155038286,-160.71175292,0.0002426,2]
[320096572,1711155038296,-400.0,0.0002426,2]
[320096573,1711155038305,-1600.2107153,0.00024455,2]
[320096574,1711155038314,-306.0,0.000245,2]
[320096576,1711155038324,-235.68783124,0.00024557,2]
[320096578,1711155038333,-500.0,0.00024657,2]
[320096580,1711155038342,-500.0,0.00024657,2]
[320096582,1711155038351,-500.0,0.00024657,2]
[320096584,1711155038360,-500.0,0.00024657,2]
[320096586,1711155038370,-500.0,0.00024657,30]
[320096588,1711155038379,-500.0,0.00024657,2]
[320096590,1711155038388,-500.0,0.00024657,2]
[320096592,1711155038399,-500.0,0.00024657,2]
[320096593,1711155038408,-500.0,0.00024657,2]
[320096603,1711155038547,-500.0,0.00024657,2]
[320096605,1711155038557,-500.0,0.00024657,2]
[320096607,1711155038566,-244.70375022,0.00024657,2]
[320096609,1711155038576,-500.0,0.00024657,2]
[320096610,1711155038586,-632.49565172,0.00024657,2]
[320096612,1711155038595,-500.0,0.00024657,2]
[320096614,1711155038605,-483.96581288,0.00024657,2]
[320096616,1711155038614,-500.0,0.00024657,2]
[320096618,1711155038623,-500.0,0.00024657,2]
[320096620,1711155038632,-500.0,0.00024657,2]
[320096622,1711155038641,-500.0,0.00024657,2]
[320096624,1711155038652,-500.0,0.00024657,2]
[320096626,1711155038662,-701.07,0.00024657,2]
[320096628,1711155038671,-500.0,0.00024657,2]
[320096630,1711155038680,-500.0,0.00024657,2]
[320096631,1711155038689,-500.0,0.00024657,2]
[320096633,1711155038699,-500.0,0.00024657,2]
[320096635,1711155038708,-500.0,0.00024657,2]
[320096637,1711155038718,-577.92,0.00024657,2]
[320096639,1711155038729,-1068.07,0.00024657,2]
[320096641,1711155038738,-500.0,0.00024657,2]
[320096643,1711155038747,-546.52457957,0.00024657,2]
[320096645,1711155038756,-500.0,0.00024657,2]
[320096647,1711155038766,-500.0,0.00024657,2]
[320096649,1711155038775,-500.0,0.00024657,2]
[320096651,1711155038785,-540.77,0.00024657,2]
[320096653,1711155038794,-500.0,0.00024657,2]
[320096655,1711155038803,-500.0,0.00024657,2]
[320096657,1711155038812,-500.0,0.00024657,2]
[320096659,1711155038821,-500.0,0.00024657,2]
[320096661,1711155038831,-500.0,0.00024657,2]
[320096663,1711155038846,-210.85507968,0.00024657,2]
[320096665,1711155038855,-869.3,0.00024657,2]
[320096667,1711155038864,-500.0,0.00024657,2]
[320096669,1711155038873,-769.24,0.00024657,2]
[320096671,1711155038882,-500.0,0.00024657,2]
[320096673,1711155038893,-500.0,0.00024657,2]
[320096675,1711155038903,-500.0,0.00024657,2]
[320096677,1711155038912,-516.37168215,0.00024657,2]
[320096679,1711155038922,-500.0,0.00024657,2]
[320096681,1711155038932,-500.0,0.00024657,2]
[320096683,1711155038941,-500.0,0.00024657,2]
[320096685,1711155038951,-500.0,0.00024657,2]
[320096687,1711155038961,-500.0,0.00024657,2]
[320096689,1711155038970,-500.0,0.00024657,2]
[320096691,1711155038979,-1948.45,0.00024657,2]
[320096693,1711155038988,-500.0,0.00024657,2]
[320096695,1711155038998,-500.0,0.00024657,2]
[320096697,1711155039007,-500.0,0.00024657,2]
[320096699,1711155039017,-500.0,0.00024657,2]
[320096701,1711155039026,-500.0,0.00024657,2]
[320096702,1711155039037,-582.82,0.00024657,2]
[320096704,1711155039046,-500.0,0.00024657,2]
[320096706,1711155039056,-500.0,0.00024657,2]
[320096708,1711155039066,-500.0,0.00024657,2]
[320096709,1711155039075,-584.75,0.00024657,2]
[320096710,1711155039085,-500.0,0.00024657,2]
[320096711,1711155039095,-500.0,0.00024657,2]
[320096712,1711155039104,-500.0,0.00024657,2]
[320096713,1711155039115,-500.0,0.00024657,2]
[320096714,1711155039124,-601.68428916,0.00024657,2]
[320096715,1711155039134,-500.0,0.00024657,2]
[320096716,1711155039143,-1040.35,0.00024657,2]
[320096717,1711155039154,-500.0,0.00024657,2]
[320096718,1711155039163,-500.0,0.00024657,2]
[320096719,1711155039173,-500.0,0.00024657,2]
[320096720,1711155039182,-500.0,0.00024657,2]
[320096721,1711155039191,-449.0147999,0.00024657,2]
[320096722,1711155039201,-500.0,0.00024657,2]
[320096723,1711155039210,-500.0,0.00024657,2]
[320096724,1711155039220,-500.0,0.00024657,2]
[320096725,1711155039229,-500.0,0.00024657,2]
[320096726,1711155039239,-500.0,0.00024657,2]
[320096727,1711155039248,-500.0,0.00024657,2]
[320096728,1711155039257,-500.0,0.00024657,2]
[320096729,1711155039266,-500.0,0.00024657,2]
[320096730,1711155039275,-500.0,0.00024657,2]
[320096731,1711155039285,-345.97723745,0.00024657,2]
[320096732,1711155039295,-500.0,0.00024657,2]
[320096733,1711155039304,-500.0,0.00024657,2]
[320096734,1711155039314,-500.0,0.00024657,2]
[320096735,1711155039323,-500.0,0.00024657,2]
[320096736,1711155039333,-500.0,0.00024657,2]
[320096737,1711155039342,-500.0,0.00024657,2]
[320096738,1711155039351,-500.0,0.00024657,2]
[320096739,1711155039360,-618.80697838,0.00024657,2]
[320096740,1711155039370,-500.0,0.00024657,2]
[320096741,1711155039379,-500.0,0.00024657,2]
[320096742,1711155039389,-500.0,0.00024657,2]
[320096743,1711155039400,-212.24,0.00024657,2]
[320096744,1711155039409,-599.18782755,0.00024657,2]
[320096745,1711155039418,-500.0,0.00024657,2]
[320096746,1711155039427,-500.0,0.00024657,2]
[320096747,1711155039436,-500.0,0.00024657,2]
[320096748,1711155039445,-500.0,0.00024657,2]
[320096749,1711155039454,-1194.84,0.00024657,2]
[320096750,1711155039463,-3654.37,0.00024657,2]
[320096751,1711155039473,-500.0,0.00024657,2]
[320096752,1711155039482,-1844.16,0.00024657,2]
[320096753,1711155039491,-1155.63,0.00024657,2]
[320096754,1711155039500,-500.0,0.00024657,2]
[320096755,1711155039509,-16599.26,0.00024657,2]
[320096756,1711155039518,-500.0,0.00024657,2]
[320096757,1711155039527,-938.13,0.00024657,2]
[320096758,1711155039536,-500.0,0.00024657,2]
[320096759,1711155039545,-500.0,0.00024657,2]
[320096760,1711155039555,-500.0,0.00024657,2]
[320096761,1711155039564,-2536.69,0.00024657,2]
[320096762,1711155039573,-500.0,0.00024657,2]
[320096763,1711155039583,-500.0,0.00024657,2]
[320096764,1711155039592,-500.0,0.00024657,2]
[320096765,1711155039601,-500.0,0.00024657,2]
[320096767,1711155039611,-1298.27,0.00024657,2]
[320096769,1711155039620,-500.0,0.00024657,2]
[320096771,1711155039629,-500.0,0.00024657,2]
[320096773,1711155039638,-500.0,0.00024657,2]
[320096775,1711155039647,-500.0,0.00024657,2]
[320096777,1711155039657,-1140.11,0.00024657,2]
[320096779,1711155039666,-1633.96,0.00024657,2]
[320096780,1711155039675,-500.0,0.00024657,2]
[320096781,1711155039684,-500.0,0.00024657,2]
[320096782,1711155039693,-12711.81,0.00024657,2]
[320096783,1711155039703,-914.82,0.00024657,2]
[320096784,1711155039712,-500.0,0.00024657,2]
[320096785,1711155039722,-1338.69,0.00024657,2]
[320096787,1711155039731,-500.0,0.00024657,2]
[320096789,1711155039741,-500.0,0.00024657,2]
[320096791,1711155039750,-500.0,0.00024657,2]
[320096793,1711155039758,-500.0,0.00024657,2]
[320096794,1711155039768,-246.28499172,0.00024657,2]
[320096795,1711155039777,-500.0,0.00024657,2]
[320096797,1711155039787,-500.0,0.00024657,2]
[320096799,1711155039797,-500.0,0.00024657,2]
[320096800,1711155039806,-500.0,0.00024657,2]
[320096803,1711155039816,-622.0458634,0.00024657,2]
[320096804,1711155039826,-500.0,0.00024657,2]
[320096806,1711155039837,-500.0,0.00024657,2]
[320096807,1711155039851,-500.0,0.00024657,2]
[320096809,1711155039860,-983.03,0.00024657,2]
[320096810,1711155039869,-500.0,0.00024657,2]
[320096811,1711155039880,-500.0,0.00024657,2]
[320096812,1711155039890,-500.0,0.00024657,2]
[320096813,1711155039900,-500.0,0.00024657,2]
[320096814,1711155039909,-318.33077286,0.00024657,2]
[320096815,1711155039918,-500.0,0.00024657,2]
[320096816,1711155039929,-500.0,0.00024657,2]
[320096817,1711155039939,-500.0,0.00024657,2]
[320096818,1711155039948,-520.81521444,0.00024657,2]
[320096819,1711155039958,-500.0,0.00024657,2]
[320096820,1711155039968,-14844.05,0.00024657,2]
[320096821,1711155039977,-659.77,0.00024657,2]
[320096822,1711155039986,-500.0,0.00024657,2]
[320096823,1711155039995,-500.0,0.00024657,2]
[320096824,1711155040006,-500.0,0.00024657,2]
[320096825,1711155040016,-13605.07,0.00024657,2]
[320096827,1711155040025,-500.0,0.00024657,2]
[320096828,1711155040034,-1331.35,0.00024657,2]
[320096830,1711155040043,-500.0,0.00024657,2]
[320096831,1711155040052,-500.0,0.00024657,2]
[320096832,1711155040062,-500.0,0.00024657,2]
[320096833,1711155040071,-500.0,0.00024657,2]
[320096834,1711155040080,-500.0,0.00024657,2]
[320096836,1711155040090,-511.25987333,0.00024657,2]
[320096837,1711155040099,-2521.87,0.00024657,2]
[320096838,1711155040108,-500.0,0.00024657,2]
[320096839,1711155040117,-3236.98,0.00024657,2]
[320096840,1711155040127,-500.0,0.00024657,2]
[320096841,1711155040137,-500.0,0.00024657,2]
[320096842,1711155040147,-500.0,0.00024657,2]
[320096843,1711155040156,-500.0,0.00024657,2]
[320096844,1711155040165,-500.0,0.00024657,2]
[320096845,1711155040174,-500.0,0.00024657,2]
[320096846,1711155040183,-500.0,0.00024657,2]
[320096847,1711155040193,-500.0,0.00024657,2]
[320096848,1711155040203,-18238.03,0.00024657,2]
[320096849,1711155040212,-500.0,0.00024657,2]
[320096850,1711155040222,-500.0,0.00024657,2]
[320096851,1711155040232,-1081.51,0.00024657,2]
[320096852,1711155040241,-500.0,0.00024657,2]
[320096853,1711155040251,-6028.03,0.00024657,2]
[320096854,1711155040260,-1018.67,0.00024657,2]
[320096855,1711155040269,-500.0,0.00024657,2]
[320096856,1711155040279,-1031.2,0.00024657,2]
[320096857,1711155040288,-309.57720047,0.00024657,2]
[320096858,1711155040297,-500.0,0.00024657,2]
[320096859,1711155040306,-3010.24,0.00024657,2]
[320096860,1711155040316,-153.0,0.00024678,2]
[320096861,1711155040325,-306.0,0.00024685,2]
[320096862,1711155040334,-306.0,0.00024778,2]
[320096863,1711155040344,-153.0,0.00024778,2]
[320096864,1711155040353,-153.0,0.00024778,2]
[320096865,1711155040364,-235.68783123,0.00024831,2]
[320096866,1711155040373,-306.0,0.00024878,2]
[320096867,1711155040382,-8210.52455209,0.00024926,2]
[320096868,1711155040392,-5169.56205362,0.00024953,2]
[320096869,1711155040403,-153.0,0.00025068,2]
[320096870,1711155040412,-153.0,0.00025068,2]
[320096871,1711155040422,-153.0,0.00025068,2]
[320096872,1711155040431,-153.0,0.00025068,2]
[320096873,1711155040441,-153.0,0.00025068,2]
[320096874,1711155040451,-153.0,0.00025068,2]
[320096875,1711155040461,-2000.0,0.00025085,2]
[320096876,1711155040470,-235.68783123,0.00025105,2]
[320096877,1711155040480,-500.0,0.00025205,2]
[320096878,1711155040489,-500.0,0.00025205,2]
[320096879,1711155040498,-500.0,0.00025205,2]
[320096880,1711155040507,-500.0,0.00025205,2]
[320096881,1711155040517,-500.0,0.00025205,2]
[320096882,1711155040526,-500.0,0.00025205,2]
[320096883,1711155040536,-500.0,0.00025205,2]
[320096884,1711155040545,-500.0,0.00025205,2]
[320096885,1711155040554,-500.0,0.00025205,2]
[320096886,1711155040564,-500.0,0.00025205,2]
[320096887,1711155040574,-701.07,0.00025205,2]
[320096888,1711155040584,-500.0,0.00025205,2]
[320096889,1711155040593,-500.0,0.00025205,2]
[320096890,1711155040602,-500.0,0.00025205,2]
[320096891,1711155040612,-577.92,0.00025205,2]
[320096892,1711155040621,-1068.07,0.00025205,2]
[320096893,1711155040631,-500.0,0.00025205,2]
[320096894,1711155040640,-500.0,0.00025205,2]
[320096895,1711155040651,-500.0,0.00025205,2]
[320096896,1711155040660,-500.0,0.00025205,2]
[320096897,1711155040669,-540.77,0.00025205,2]
[320096898,1711155040678,-500.0,0.00025205,2]
[320096899,1711155040687,-500.0,0.00025205,2]
[320096900,1711155040696,-500.0,0.00025205,2]
[320096901,1711155040706,-500.0,0.00025205,2]
[320096902,1711155040715,-869.3,0.00025205,2]
[320096903,1711155040725,-769.24,0.00025205,2]
[320096904,1711155040734,-500.0,0.00025205,2]
[320096905,1711155040743,-500.0,0.00025205,2]
[320096906,1711155040753,-500.0,0.00025205,2]
[320096907,1711155040762,-500.0,0.00025205,2]
[320096908,1711155040771,-500.0,0.00025205,2]
[320096909,1711155040781,-1948.45,0.00025205,2]
[320096910,1711155040790,-500.0,0.00025205,2]
[320096911,1711155040799,-500.0,0.00025205,2]
[320096912,1711155040808,-362.36989471,0.00025205,2]
[320096913,1711155040817,-582.82,0.00025205,2]
[320096914,1711155040826,-500.0,0.00025205,2]
[320096915,1711155040836,-500.0,0.00025205,2]
[320096916,1711155040849,-500.0,0.00025205,2]
[320096917,1711155040858,-584.75,0.00025205,2]
[320096918,1711155040867,-500.0,0.00025205,2]
[320096919,1711155040877,-500.0,0.00025205,2]
[320096920,1711155040886,-500.0,0.00025205,2]
[320096921,1711155040897,-500.0,0.00025205,2]
[320096922,1711155040906,-1040.35,0.00025205,2]
[320096923,1711155040915,-500.0,0.00025205,2]
[320096924,1711155040927,-500.0,0.00025205,2]
[320096925,1711155040936,-500.0,0.00025205,2]
[320096926,1711155040945,-280.62819496,0.00025205,2]
[320096927,1711155040955,-687.89347292,0.00025205,2]
[320096928,1711155040965,-500.0,0.00025205,2]
[320096929,1711155040974,-1042.96963488,0.00025205,2]
[320096930,1711155040984,-500.0,0.00025205,2]
[320096931,1711155040993,-500.0,0.00025205,2]
[320096932,1711155041002,-256.639276,0.00025205,2]
[320096933,1711155041012,-500.0,0.00025205,2]
[320096934,1711155041021,-500.0,0.00025205,2]
[320096935,1711155041030,-151.0,0.00025205,2]
[320096936,1711155041040,-500.0,0.00025205,2]
[320096937,1711155041049,-500.0,0.00025205,2]
[320096938,1711155041059,-500.0,0.00025205,2]
[320096939,1711155041068,-500.0,0.00025205,2]
[320096940,1711155041077,-162.17961263,0.00025205,2]
[320096941,1711155041087,-151.0,0.00025205,2]
[320096942,1711155041097,-151.0,0.00025205,2]
[320096943,1711155041106,-500.0,0.00025205,2]
[320096944,1711155041117,-151.0,0.00025205,2]
[320096945,1711155041126,-151.0,0.00025205,2]
[320096946,1711155041227,-1194.84,0.00025205,2]
[320096947,1711155041238,-3654.37,0.00025205,2]
[320096948,1711155041247,-1844.16,0.00025205,2]
[320096949,1711155041256,-1155.63,0.00025205,2]
[320096950,1711155041266,-500.0,0.00025205,2]
[320096951,1711155041275,-16599.26,0.00025205,2]
[320096952,1711155041284,-500.0,0.00025205,2]
[320096953,1711155041293,-938.13,0.00025205,2]
[320096954,1711155041302,-500.0,0.00025205,2]
[320096955,1711155041312,-500.0,0.00025205,2]
[320096956,1711155041322,-2536.69,0.00025205,2]
[320096957,1711155041331,-500.0,0.00025205,2]
[320096958,1711155041340,-500.0,0.00025205,2]
[320096959,1711155041349,-1298.27,0.00025205,2]
[320096960,1711155041359,-500.0,0.00025205,2]
[320096961,1711155041368,-500.0,0.00025205,2]
[320096962,1711155041377,-500.0,0.00025205,2]
[320096963,1711155041386,-1140.11,0.00025205,2]
[320096964,1711155041397,-1633.96,0.00025205,2]
[320096965,1711155041406,-500.0,0.00025205,2]
[320096966,1711155041415,-12711.81,0.00025205,2]
[320096967,1711155041424,-914.82,0.00025205,2]
[320096968,1711155041433,-500.0,0.00025205,2]
[320096969,1711155041444,-1338.69,0.00025205,2]
[320096970,1711155041453,-500.0,0.00025205,2]
[320096971,1711155041462,-500.0,0.00025205,2]
[320096972,1711155041471,-500.0,0.00025205,2]
[320096973,1711155041481,-500.0,0.00025205,2]
[320096974,1711155041491,-500.0,0.00025205,2]
[320096975,1711155041500,-500.0,0.00025205,2]
[320096976,1711155041510,-500.0,0.00025205,2]
[320096977,1711155041520,-25.05488707,0.00025205,2]
[320096978,1711155041653,-374.0634275,0.00024657,2]
[320096979,1711155041662,-385.93841023,0.00025205,2]
[320096980,1711155041671,-983.03,0.00025205,2]
[320096981,1711155041681,-500.0,0.00025205,2]
[320096982,1711155041693,-500.0,0.00025205,2]
[320096983,1711155041702,-434.40699859,0.00025205,2]
[320096995,1711155255334,3738.75966746,0.000125,2]
[320097088,1711156238157,-7763.26971769,0.00023931,2]
[320097089,1711156238215,-5265.98444811,0.00023931,2]
[320097090,1711156238227,-201.96966181,0.00024557,7]
[320097091,1711156238236,-235.68783124,0.00024557,2]
[320097092,1711156238246,-166.46978218,0.00024557,2]
[320097094,1711156238255,-500.0,0.00024657,2]
[320097095,1711156238265,-246.76955318,0.00024657,2]
[320097096,1711156238275,-500.0,0.00024657,2]
[320097097,1711156238286,-500.0,0.00024657,2]
[320097099,1711156238295,-500.0,0.00024657,2]
[320097100,1711156238304,-500.0,0.00024657,2]
[320097102,1711156238314,-500.0,0.00024657,2]
[320097104,1711156238324,-500.0,0.00024657,2]
[320097106,1711156238334,-500.0,0.00024657,2]
[320097107,1711156238343,-500.0,0.00024657,2]
[320097108,1711156238352,-500.0,0.00024657,2]
[320097109,1711156238362,-546.52457957,0.00024657,2]
[320097110,1711156238372,-500.0,0.00024657,2]
[320097111,1711156238381,-500.0,0.00024657,2]
[320097112,1711156238391,-500.0,0.00024657,2]
[320097113,1711156238400,-500.0,0.00024657,2]
[320097114,1711156238410,-516.37168215,0.00024657,2]
[320097115,1711156238420,-500.0,0.00024657,2]
[320097116,1711156238430,-500.0,0.00024657,2]
[320097117,1711156238439,-500.0,0.00024657,2]
[320097118,1711156238449,-500.0,0.00024657,2]
[320097119,1711156238459,-500.0,0.00024657,2]
[320097120,1711156238469,-500.0,0.00024657,2]
[320097121,1711156238478,-584.75,0.00024657,2]
[320097122,1711156238488,-500.0,0.00024657,2]
[320097123,1711156238497,-678.81,0.00024657,2]
[320097124,1711156238507,-601.68428916,0.00024657,2]
[320097125,1711156238516,-500.0,0.00024657,2]
[320097126,1711156238526,-500.0,0.00024657,2]
[320097127,1711156238536,-500.0,0.00024657,2]
[320097128,1711156238545,-632.49565172,0.00024657,2]
[320097129,1711156238555,-500.0,0.00024657,2]
[320097130,1711156238564,-500.0,0.00024657,2]
[320097131,1711156238574,-500.0,0.00024657,2]
[320097132,1711156238583,-1040.35,0.00024657,2]
[320097133,1711156238593,-500.0,0.00024657,2]
[320097134,1711156238602,-500.0,0.00024657,2]
[320097135,1711156238611,-345.97723745,0.00024657,2]
[320097136,1711156238620,-500.0,0.00024657,2]
[320097138,1711156238630,-500.0,0.00024657,2]
[320097139,1711156238639,-618.80697838,0.00024657,2]
[320097140,1711156238648,-500.0,0.00024657,2]
[320097142,1711156238658,-500.0,0.00024657,2]
[320097144,1711156238668,-500.0,0.00024657,2]
[320097147,1711156238678,-500.0,0.00024657,2]
[320097149,1711156238687,-599.18782755,0.00024657,2]
[320097150,1711156238696,-500.0,0.00024657,2]
[320097152,1711156238706,-500.0,0.00024657,2]
[320097155,1711156238715,-500.0,0.00024657,2]
[320097157,1711156238724,-500.0,0.00024657,2]
[320097159,1711156238734,-500.0,0.00024657,2]
[320097160,1711156238743,-500.0,0.00024657,2]
[320097161,1711156238752,-500.0,0.00024657,2]
[320097162,1711156238761,-500.0,0.00024657,2]
[320097163,1711156238771,-500.0,0.00024657,2]
[320097164,1711156238780,-500.0,0.00024657,2]
[320097165,1711156238789,-500.0,0.00024657,2]
[320097166,1711156238799,-210.85507968,0.00024657,2]
[320097167,1711156238808,-540.77,0.00024657,2]
[320097168,1711156238818,-500.0,0.00024657,2]
[320097169,1711156238827,-582.82,0.00024657,2]
[320097170,1711156238836,-500.0,0.00024657,2]
[320097171,1711156238846,-500.0,0.00024657,2]
[320097172,1711156238855,-869.3,0.00024657,2]
[320097173,1711156238864,-1948.45,0.00024657,2]
[320097174,1711156238873,-500.0,0.00024657,2]
[320097175,1711156238883,-769.24,0.00024657,2]
[320097176,1711156238892,-500.0,0.00024657,2]
[320097177,1711156238901,-500.0,0.00024657,2]
[320097178,1711156238910,-500.0,0.00024657,2]
[320097179,1711156238920,-500.0,0.00024657,2]
[320097180,1711156238929,-500.0,0.00024657,2]
[320097181,1711156238940,-500.0,0.00024657,2]
[320097182,1711156238950,-500.0,0.00024657,2]
[320097183,1711156238959,-500.0,0.00024657,2]
[320097184,1711156238970,-500.0,0.00024657,2]
[320097185,1711156238979,-449.0147999,0.00024657,2]
[320097186,1711156238988,-500.0,0.00024657,2]
[320097187,1711156238998,-500.0,0.00024657,2]
[320097188,1711156239007,-500.0,0.00024657,2]
[320097189,1711156239016,-500.0,0.00024657,2]
[320097190,1711156239027,-500.0,0.00024657,2]
[320097191,1711156239036,-500.0,0.00024657,2]
[320097192,1711156239045,-500.0,0.00024657,2]
[320097193,1711156239055,-500.0,0.00024657,2]
[320097194,1711156239064,-500.0,0.00024657,2]
[320097195,1711156239074,-500.0,0.00024657,2]
[320097196,1711156239083,-318.33077286,0.00024657,2]
[320097197,1711156239092,-500.0,0.00024657,2]
[320097198,1711156239101,-500.0,0.00024657,2]
[320097199,1711156239111,-500.0,0.00024657,2]
[320097200,1711156239120,-500.0,0.00024657,2]
[320097201,1711156239130,-500.0,0.00024657,2]
[320097202,1711156239139,-500.0,0.00024657,2]
[320097203,1711156239148,-500.0,0.00024657,2]
[320097204,1711156239158,-500.0,0.00024657,2]
[320097205,1711156239167,-500.0,0.00024657,2]
[320097206,1711156239177,-500.0,0.00024657,2]
[320097207,1711156239187,-500.0,0.00024657,2]
[320097208,1711156239198,-500.0,0.00024657,2]
[320097209,1711156239208,-500.0,0.00024657,2]
[320097210,1711156239218,-212.24,0.00024657,2]
[320097211,1711156239228,-500.0,0.00024657,2]
[320097212,1711156239238,-500.0,0.00024657,2]
[320097213,1711156239248,-500.0,0.00024657,2]
[320097214,1711156239258,-500.0,0.00024657,2]
[320097215,1711156239268,-500.0,0.00024657,2]
[320097216,1711156239278,-500.0,0.00024657,2]
[320097217,1711156239288,-1251.74,0.00024657,2]
[320097218,1711156239298,-500.0,0.00024657,2]
[320097219,1711156239308,-3064.21,0.00024657,2]
[320097220,1711156239320,-1210.66,0.00024657,2]
[320097221,1711156239330,-500.0,0.00024657,2]
[320097222,1711156239341,-500.0,0.00024657,2]
[320097223,1711156239351,-500.0,0.00024657,2]
[320097224,1711156239360,-500.0,0.00024657,2]
[320097225,1711156239370,-17418.78,0.00024657,2]
[320097226,1711156239380,-154.90705577,0.00024657,2]
[320097227,1711156239390,-1018.67,0.00024657,2]
[320097228,1711156239400,-500.0,0.00024657,2]
[320097229,1711156239409,-500.0,0.00024657,2]
[320097230,1711156239419,-3654.37,0.00024657,2]
[320097231,1711156239429,-500.0,0.00024657,2]
[320097232,1711156239439,-500.0,0.00024657,2]
[320097233,1711156239450,-1931.98,0.00024657,2]
[320097234,1711156239460,-500.0,0.00024657,2]
[320097235,1711156239469,-500.0,0.00024657,2]
[320097236,1711156239479,-960.28,0.00024657,2]
[320097237,1711156239489,-982.8,0.00024657,2]
[320097238,1711156239499,-2657.49,0.00024657,2]
[320097239,1711156239509,-500.0,0.00024657,2]
[320097240,1711156239519,-500.64,0.00024657,2]
[320097241,1711156239529,-500.0,0.00024657,2]